bitfinex-derivatives/quotes_BTCF0:USTF0_20241003
["timestamp","ask_amount","ask_price","bid_price","bid_amount"]
[1727970121374,0.00248999,60271.0,60270.0,0.082972]
[1727970121576,0.08546099,60271.0,60270.0,0.082972]
[1727970121880,0.082973,60269.0,60268.0,0.14893631]
[1727970122181,0.082973,60269.0,60268.0,0.082974]
[1727970122397,0.082975,60268.0,60263.0,0.08244265]
[1727970122595,0.082979,60265.0,60263.0,0.06599933]
[1727970122881,0.082982,60263.0,60262.0,0.082983]
[1727970123086,0.443776,60267.0,60259.0,0.06599933]
[1727970123087,0.082986,60260.0,60259.0,0.06599933]
[1727970123275,0.082986,60260.0,60259.0,0.04951259]
[1727970123471,0.08299,60257.0,60256.0,0.06604732]
[1727970123671,0.08299,60257.0,60251.0,0.16544065]
[1727970123672,0.082986,60260.0,60255.0,0.06604732]
[1727970123881,0.082991,60256.0,60255.0,0.06604732]
[1727970124285,0.082991,60256.0,60250.0,0.443799]
[1727970124286,0.082998,60251.0,60250.0,0.443799]
[1727970124584,0.082998,60251.0,60250.0,0.48728605]
[1727970124787,0.082998,60251.0,60250.0,0.12648605]
[1727970124979,0.082997,60252.0,60250.0,0.06610475]
[1727970125182,0.082997,60252.0,60251.0,0.04958142]
[1727970125382,0.082997,60252.0,60243.0,0.06610918]
[1727970125383,0.083006,60245.0,60243.0,0.06610918]
[1727970125576,0.083009,60243.0,60242.0,0.06610918]
[1727970125888,0.083011,60242.0,60241.0,0.083012]
[1727970126391,0.00084,60246.0,60240.0,0.06610918]
[1727970126692,0.083011,60242.0,60240.0,0.14912218]
[1727970126883,0.083012,60241.0,60240.0,0.14912218]
[1727970127186,0.44,60241.0,60238.0,0.06610918]
[1727970127395,0.44,60241.0,60235.0,0.06610918]
[1727970127578,0.083019,60236.0,60235.0,0.06610918]
[1727970127981,0.44,60241.0,60232.0,0.06610918]
[1727970128179,0.08302,60236.0,60234.0,0.08302]
[1727970128385,0.44,60246.0,60230.0,0.3608]
[1727970128589,0.083007,60245.0,60236.0,0.083018]
[1727970128884,0.00249072,60249.0,60238.0,0.083016]
[1727970129080,0.00249072,60249.0,60233.0,0.50610918]
[1727970129081,0.02167866,60249.0,60233.0,0.50610918]
[1727970129277,0.083012,60241.0,60234.0,0.06610918]
[1727970129480,0.083012,60241.0,60233.0,0.44]
[1727970129682,0.083007,60245.0,60233.0,0.44]
[1727970129877,0.08549272,60249.0,60242.0,0.3608]
[1727970130092,0.08549272,60249.0,60239.0,0.083015]
[1727970130093,0.00249072,60249.0,60244.0,0.083007]
[1727970130285,0.00249072,60249.0,60248.0,0.083002]
[1727970130793,0.00249072,60249.0,60239.0,0.06610918]
[1727970130990,0.44,60242.0,60237.0,0.06610918]
[1727970131296,0.083017,60237.0,60236.0,0.443819]
[1727970132085,0.523017,60237.0,60236.0,0.3608]
[1727970132285,0.083025,60232.0,60231.0,0.083026]
[1727970132582,0.3608,60244.0,60227.0,0.0315]
[1727970132583,0.08302,60235.0,60232.0,0.083023]
[1727970132781,0.083024,60233.0,60227.0,0.0315]
[1727970132992,0.083018,60237.0,60236.0,0.083019]
[1727970133297,0.3608,60244.0,60239.0,0.083013]
[1727970133298,0.083014,60240.0,60239.0,0.083013]
[1727970133796,0.37928059,60244.0,60237.0,0.083017]
[1727970133797,0.083018,60238.0,60237.0,0.083017]
[1727970134387,0.083019,60236.0,60233.0,0.443822]
[1727970134695,0.083005,60246.0,60235.0,0.083019]
[1727970134696,0.083017,60238.0,60235.0,0.083019]
[1727970134894,0.083017,60238.0,60237.0,0.083017]
[1727970135090,0.083007,60245.0,60233.0,0.3608]
[1727970135091,0.083011,60242.0,60241.0,0.083012]
[1727970135791,0.0184994,60247.0,60244.0,0.083005]
[1727970135792,0.083007,60245.0,60244.0,0.083005]
[1727970135993,0.3608,60255.0,60248.0,0.083002]
[1727970136185,0.083007,60245.0,60237.0,0.083017]
[1727970136385,0.01859836,60250.0,60233.0,0.3608]
[1727970136590,0.083004,60247.0,60233.0,0.3608]
[1727970136798,0.083012,60241.0,60240.0,0.083012]
[1727970139600,0.083012,60241.0,60236.0,0.083018]
[1727970139601,0.083018,60237.0,60236.0,0.083018]
[1727970140696,0.083013,60241.0,60240.0,0.083012]
[1727970140896,0.01866232,60248.0,60236.0,0.44]
[1727970141198,0.00249072,60249.0,60248.0,0.083002]
[1727970141396,0.00249072,60249.0,60248.0,0.114902]
[1727970141598,0.3298,60262.0,60248.0,0.114902]
[1727970141808,0.01894722,60262.0,60248.0,0.0319]
[1727970142096,0.082999,60251.0,60250.0,0.082998]
[1727970142500,0.082983,60262.0,60254.0,0.082993]
[1727970142501,0.082993,60255.0,60254.0,0.082993]
[1727970142695,0.082989,60258.0,60257.0,0.082987]
[1727970142888,0.082993,60255.0,60254.0,0.082994]
[1727970143993,0.082993,60255.0,60244.0,0.032]
[1727970143994,1.180873,60255.0,60238.0,0.3608]
[1727970144197,0.083016,60239.0,60238.0,0.083014]
[1727970144505,0.083016,60238.0,60229.0,0.0301]
[1727970144707,0.523016,60238.0,60229.0,0.0301]
[1727970144913,0.523016,60238.0,60229.0,0.113128]
[1727970145208,0.083027,60230.0,60229.0,0.0301]
[1727970145911,0.083027,60230.0,60213.0,0.08305]
[1727970145912,0.083042,60219.0,60213.0,0.08305]
[1727970146097,0.083042,60219.0,60202.0,0.3232]
[1727970146098,0.804642,60219.0,60208.0,0.0301]
[1727970146294,0.523056,60209.0,60208.0,0.0301]
[1727970146805,0.083056,60209.0,60208.0,0.0301]
[1727970147107,0.083052,60213.0,60202.0,0.05214902]
[1727970147301,0.44,60215.0,60206.0,0.083059]
[1727970147302,0.083053,60211.0,60206.0,0.083059]
[1727970147504,0.44,60215.0,60202.0,0.05214902]
[1727970147702,0.083055,60211.0,60204.0,0.083062]
[1727970147905,0.083055,60211.0,60202.0,0.05214902]
[1727970148303,0.083048,60215.0,60210.0,0.083054]
[1727970148497,0.72244,60219.0,60210.0,0.083054]
[1727970148807,0.083048,60216.0,60205.0,0.44]
[1727970149105,0.00096001,60219.0,60218.0,0.083044]
[1727970149306,0.083031,60228.0,60218.0,0.8008]
[1727970149507,0.083034,60226.0,60219.0,0.0321]
[1727970149709,0.00249134,60232.0,60219.0,0.0321]
[1727970149902,0.00249134,60232.0,60227.0,0.083031]
[1727970149903,0.083029,60229.0,60227.0,0.083031]
[1727970150303,0.083033,60226.0,60219.0,0.0321]
[1727970150595,0.00249134,60232.0,60225.0,0.3608]
[1727970150805,0.00249134,60232.0,60231.0,0.083026]
[1727970152010,0.00249134,60232.0,60225.0,0.3608]
[1727970152212,0.00249134,60232.0,60227.0,0.08303]
[1727970152213,0.44249134,60232.0,60227.0,0.08303]
[1727970152413,0.44249134,60232.0,60221.0,0.083039]
[1727970152606,0.44,60226.0,60221.0,0.083039]
[1727970153105,0.083038,60222.0,60221.0,0.083039]
[1727970153310,0.08304,60221.0,60220.0,0.08304]
[1727970153812,0.52304,60221.0,60217.0,0.083044]
[1727970154109,0.083048,60215.0,60214.0,0.08553917]
[1727970154314,0.083044,60218.0,60217.0,0.083041]
[1727970154508,0.01921883,60226.0,60214.0,0.00249117]
[1727970154811,0.083034,60225.0,60224.0,0.083034]
[1727970155111,0.3608,60228.0,60227.0,0.083031]
[1727970155506,0.00249134,60232.0,60231.0,0.083026]
[1727970155811,0.3608,60241.0,60239.0,0.083014]
[1727970156106,0.3608,60241.0,60240.0,0.083013]
[1727970156309,0.083005,60247.0,60246.0,0.083005]
[1727970156709,0.082998,60251.0,60249.0,0.083]
[1727970156913,0.082998,60251.0,60238.0,0.083015]
[1727970157110,0.02158311,60252.0,60237.0,0.083017]
[1727970157306,0.083004,60247.0,60245.0,0.083006]
[1727970157505,0.083,60250.0,60236.0,0.3608]
[1727970157807,0.083,60250.0,60249.0,0.083001]
[1727970158404,0.083006,60246.0,60243.0,0.083008]
[1727970158610,0.083006,60246.0,60236.0,0.37997901]
[1727970158916,0.083006,60245.0,60244.0,0.083007]
[1727970159706,0.082999,60251.0,60250.0,0.082999]
[1727970159903,0.00249065,60252.0,60251.0,0.082998]
[1727970160315,0.3608,60268.0,60249.0,0.0331]
[1727970160520,0.082979,60265.0,60249.0,0.0651]
[1727970160819,0.082979,60265.0,60263.0,0.082981]
[1727970161015,0.3608,60268.0,60253.0,0.44]
[1727970161209,0.082979,60266.0,60253.0,0.44]
[1727970161407,0.082979,60266.0,60265.0,0.082979]
[1727970161720,0.443766,60275.0,60271.0,0.08297]
[1727970161721,0.08297,60272.0,60271.0,0.08297]
[1727970162320,0.08297,60272.0,60267.0,0.082976]
[1727970162819,0.08297,60272.0,60269.0,0.082973]
[1727970163015,0.08297,60272.0,60270.0,0.082972]
[1727970163516,0.00248975,60278.0,60273.0,0.082967]
[1727970163517,0.082965,60276.0,60273.0,0.082967]
[1727970163814,0.00248975,60278.0,60273.0,0.082967]
[1727970163815,0.08545075,60278.0,60273.0,0.082967]
[1727970164011,0.082968,60274.0,60269.0,0.082972]
[1727970164211,0.082968,60274.0,60268.0,0.3608]
[1727970164212,0.00248975,60278.0,60268.0,0.3608]
[1727970164609,0.082954,60283.0,60275.0,0.3608]
[1727970165019,0.082954,60283.0,60280.0,0.082958]
[1727970165217,0.082954,60283.0,60275.0,0.3608]
[1727970165409,0.44,60294.0,60282.0,0.082954]
[1727970165614,0.082954,60284.0,60278.0,0.08296]
[1727970165809,0.522947,60289.0,60275.0,0.3608]
[1727970166009,0.522947,60289.0,60276.0,0.082963]
[1727970166321,0.522947,60289.0,60277.0,0.082962]
[1727970166519,0.082955,60283.0,60278.0,0.08296]
[1727970166725,0.082947,60289.0,60283.0,0.082953]
[1727970166915,0.44,60294.0,60281.0,0.082956]
[1727970166916,0.08295,60287.0,60281.0,0.082956]
[1727970167110,0.44,60294.0,60275.0,0.3608]
[1727970167311,0.08296,60279.0,60276.0,0.082963]
[1727970167511,0.08296,60279.0,60277.0,0.082961]
[1727970167913,0.44,60289.0,60277.0,0.082961]
[1727970168108,0.082964,60276.0,60275.0,0.3608]
[1727970168826,0.8008,60276.0,60259.0,0.3608]
[1727970169022,0.082971,60271.0,60267.0,0.082976]
[1727970169214,0.082971,60271.0,60259.0,0.3608]
[1727970169414,0.81922301,60276.0,60259.0,0.3608]
[1727970169616,0.082982,60263.0,60259.0,0.443786]
[1727970169917,0.082982,60263.0,60260.0,0.082985]
[1727970170317,0.082976,60267.0,60259.0,0.443787]
[1727970170318,0.44,60265.0,60259.0,0.443787]
[1727970170626,0.082983,60263.0,60259.0,0.3608]
[1727970171121,0.082968,60273.0,60262.0,0.082983]
[1727970171425,0.082971,60271.0,60266.0,0.082977]
[1727970171623,1.5,60275.0,60266.0,0.082977]
[1727970171828,0.082973,60270.0,60266.0,0.082977]
[1727970172021,0.082975,60268.0,60266.0,0.082977]
[1727970172217,1.5,60275.0,60266.0,0.082977]
[1727970172411,0.082975,60268.0,60267.0,0.082976]
[1727970172617,0.082965,60275.0,60264.0,0.44]
[1727970172815,0.082965,60275.0,60272.0,0.082969]
[1727970173226,0.082958,60281.0,60277.0,0.082962]
[1727970173527,0.082961,60279.0,60277.0,0.082962]
[1727970173720,0.3608,60283.0,60277.0,0.082962]
[1727970173926,0.08296,60279.0,60277.0,0.082962]
[1727970174421,0.082966,60275.0,60273.0,0.082968]
[1727970175530,0.082966,60275.0,60274.0,0.082966]
[1727970176025,0.082966,60274.0,60261.0,0.01902922]
[1727970176224,0.44,60275.0,60253.0,0.44]
[1727970176728,0.3608,60277.0,60269.0,0.082973]
[1727970176928,0.3608,60277.0,60259.0,0.8008]
[1727970177129,0.082979,60265.0,60264.0,0.08298]
[1727970177331,0.3608,60266.0,60252.0,0.03348949]
[1727970177518,0.3608,60266.0,60252.0,0.00248949]
[1727970177519,0.44,60259.0,60252.0,0.00248949]
[1727970177716,0.082995,60253.0,60252.0,0.08548649]
[1727970178123,0.082995,60253.0,60252.0,0.00248949]
[1727970178320,0.443795,60253.0,60252.0,0.00248949]
[1727970178520,1.45872,60253.0,60239.0,0.0323]
[1727970178733,0.3608,60253.0,60241.0,0.083011]
[1727970178917,0.083004,60247.0,60244.0,0.083007]
[1727970179118,0.37964124,60253.0,60245.0,0.083005]
[1727970179331,0.083005,60246.0,60245.0,0.083005]
[1727970179626,0.083007,60245.0,60238.0,0.3608]
[1727970179833,0.083009,60244.0,60238.0,0.3608]
[1727970180021,0.083008,60245.0,60242.0,0.08301]
[1727970180218,0.81964124,60253.0,60238.0,0.3618]
[1727970180433,0.083022,60235.0,60233.0,0.083023]
[1727970180629,0.44,60242.0,60229.0,0.083028]
[1727970180929,0.3608,60243.0,60228.0,0.00249022]
[1727970180930,0.083028,60229.0,60228.0,0.00249022]
[1727970181837,1.11734336,60229.0,60209.0,0.86690918]
[1727970182038,0.083049,60215.0,60213.0,0.08305]
[1727970182225,0.083049,60215.0,60209.0,0.8008]
[1727970182226,0.083055,60211.0,60210.0,0.083054]
[1727970182530,0.44,60225.0,60210.0,0.083054]
[1727970182730,0.083048,60216.0,60212.0,0.083052]
[1727970182936,0.03389158,60228.0,60209.0,0.3608]
[1727970183128,0.03389158,60228.0,60210.0,0.44]
[1727970183329,0.03389158,60228.0,60217.0,0.083044]
[1727970183533,0.083051,60213.0,60210.0,0.44]
[1727970183732,0.083051,60213.0,60211.0,0.083053]
[1727970184038,0.3608,60224.0,60211.0,0.85904]
[1727970184335,0.00249158,60228.0,60227.0,0.083031]
[1727970184728,0.083018,60237.0,60224.0,0.033]
[1727970184932,0.083024,60233.0,60232.0,0.083024]
[1727970185125,0.083026,60231.0,60230.0,0.44]
[1727970185336,0.083028,60230.0,60228.0,0.08303]
[1727970185837,0.083018,60237.0,60229.0,0.44]
[1727970186030,0.083021,60235.0,60229.0,0.44]
[1727970186222,0.083022,60234.0,60232.0,0.083023]
[1727970186430,0.083027,60230.0,60228.0,0.08303]
[1727970186736,0.083027,60230.0,60228.0,0.083029]
[1727970186924,0.3608,60239.0,60224.0,0.473]
[1727970187133,0.3608,60239.0,60229.0,0.44]
[1727970187443,0.3608,60239.0,60224.0,0.033]
[1727970187444,0.3608,60239.0,60238.0,0.083016]
[1727970187636,0.443815,60239.0,60238.0,0.083016]
[1727970187936,0.3608,60239.0,60238.0,0.083016]
[1727970188639,0.083011,60242.0,60238.0,0.3608]
[1727970188838,0.083006,60246.0,60240.0,0.44]
[1727970189141,0.08549062,60250.0,60245.0,0.44]
[1727970189337,0.10383881,60250.0,60249.0,0.083001]
[1727970190135,0.00249062,60250.0,60249.0,0.083001]
[1727970190443,0.08549062,60250.0,60249.0,0.083001]
[1727970190636,0.00249062,60250.0,60249.0,0.083001]
[1727970193133,0.00249062,60250.0,60245.0,0.44]
[1727970193134,0.083005,60247.0,60245.0,0.44]
[1727970193445,0.00249062,60250.0,60249.0,0.083001]
[1727970194250,0.00249062,60250.0,60249.0,0.443801]
[1727970194448,0.3608,60260.0,60249.0,0.443801]
[1727970194449,0.082991,60257.0,60255.0,0.082993]
[1727970194648,0.082991,60257.0,60249.0,0.3608]
[1727970194649,0.082994,60254.0,60253.0,0.44]
[1727970194956,0.3608,60260.0,60249.0,0.3608]
[1727970194957,0.082996,60253.0,60252.0,0.082996]
[1727970195543,0.3608,60260.0,60249.0,0.3608]
[1727970195738,0.37918033,60260.0,60249.0,0.3608]
[1727970196050,0.37918033,60260.0,60253.0,0.082994]
[1727970196244,0.082987,60259.0,60253.0,0.082994]
[1727970196446,0.082994,60254.0,60253.0,0.082994]
[1727970197555,0.082994,60254.0,60253.0,0.372994]
[1727970197854,0.082989,60258.0,60257.0,0.082989]
[1727970198054,0.082989,60258.0,60257.0,0.372989]
[1727970198554,0.3608,60269.0,60263.0,0.082981]
[1727970198853,0.3608,60269.0,60266.0,0.372977]
[1727970198854,0.0854659,60267.0,60266.0,0.372977]
[1727970199449,0.0024899,60267.0,60266.0,0.372977]
[1727970199653,0.44,60271.0,60259.0,0.3608]
[1727970199859,0.44,60271.0,60252.0,0.3608]
[1727970199860,0.082991,60256.0,60254.0,0.082994]
[1727970200051,0.44,60260.0,60254.0,0.082994]
[1727970200247,0.44,60260.0,60252.0,0.3608]
[1727970200248,0.082986,60260.0,60252.0,0.3608]
[1727970200446,0.082995,60253.0,60252.0,0.3608]
[1727970200949,0.082985,60261.0,60252.0,0.3608]
[1727970201143,0.082995,60253.0,60252.0,0.3608]
[1727970201450,0.083001,60249.0,60247.0,0.083003]
[1727970201852,0.083001,60249.0,60248.0,0.083002]
[1727970202248,0.61347512,60289.0,60248.0,1.53792]
[1727970202555,0.082983,60262.0,60254.0,0.44]
[1727970202748,0.37968148,60265.0,60264.0,0.08298]
[1727970202749,0.3608,60265.0,60264.0,0.08298]
[1727970203261,0.443779,60265.0,60264.0,0.08298]
[1727970203454,0.3608,60265.0,60264.0,0.08298]
[1727970203652,0.082975,60268.0,60267.0,0.082975]
[1727970203857,0.08546322,60269.0,60268.0,0.082975]
[1727970204250,0.082975,60268.0,60265.0,0.082979]
[1727970204568,0.00249022,60269.0,60268.0,0.082975]
[1727970204860,0.08546322,60269.0,60268.0,0.082975]
[1727970205158,0.3298,60285.0,60272.0,0.082969]
[1727970205362,0.082968,60273.0,60272.0,0.082969]
[1727970205654,0.082968,60273.0,60266.0,0.44]
[1727970205655,0.3608,60288.0,60271.0,0.8008]
[1727970205856,0.082953,60285.0,60283.0,0.082954]
[1727970206358,0.01852508,60290.0,60280.0,0.443758]
[1727970206659,0.082957,60282.0,60280.0,0.082958]
[1727970207359,0.082957,60282.0,60276.0,0.44]
[1727970207360,0.34838149,60293.0,60276.0,0.44]
[1727970207553,0.082963,60277.0,60273.0,0.01921134]
[1727970207851,0.082963,60277.0,60271.0,0.3608]
[1727970207852,0.082958,60281.0,60271.0,0.3608]
[1727970208051,0.082958,60280.0,60271.0,0.3608]
[1727970208252,0.082969,60272.0,60271.0,0.3608]
[1727970208951,0.082969,60272.0,60271.0,0.46230924]
[1727970209152,0.082947,60288.0,60273.0,0.082967]
[1727970209153,0.082965,60275.0,60273.0,0.082967]
[1727970209460,0.082965,60275.0,60274.0,0.082966]
[1727970209653,0.082954,60283.0,60273.0,0.082968]
[1727970209963,0.082947,60289.0,60287.0,0.082947]
[1727970210161,0.082947,60288.0,60286.0,0.44]
[1727970210458,0.082949,60287.0,60281.0,0.44]
[1727970210759,0.082955,60282.0,60281.0,0.44]
[1727970210957,0.082955,60282.0,60271.0,0.37933824]
[1727970210958,0.082955,60282.0,60271.0,0.81933824]
[1727970211159,0.37933026,60295.0,60272.0,0.082968]
[1727970211160,0.082968,60273.0,60272.0,0.082968]
[1727970211655,0.3608,60284.0,60271.0,0.45941824]
[1727970211858,0.082962,60278.0,60276.0,0.082963]
[1727970212055,0.082962,60277.0,60276.0,0.082963]
[1727970212655,0.082967,60274.0,60271.0,0.45853824]
[1727970212856,0.082967,60274.0,60273.0,0.082967]
[1727970213666,0.082956,60282.0,60275.0,0.082964]
[1727970213866,0.37993916,60284.0,60271.0,0.44]
[1727970214060,0.082961,60278.0,60277.0,0.082961]
[1727970214258,0.37993916,60284.0,60270.0,0.01894935]
[1727970214461,0.37993916,60284.0,60271.0,0.08297]
[1727970214462,0.08296,60279.0,60271.0,0.08297]
[1727970214769,0.082969,60273.0,60272.0,0.082969]
[1727970215857,0.082962,60278.0,60276.0,0.082963]
[1727970216158,0.082956,60282.0,60281.0,0.082957]
[1727970216360,0.12360008,60282.0,60281.0,0.522957]
[1727970216556,0.04064408,60282.0,60281.0,0.522957]
[1727970216952,0.50911512,60290.0,60289.0,0.082946]
[1727970217154,0.50911512,60290.0,60289.0,0.522946]
[1727970217155,0.40144238,60290.0,60289.0,0.522946]
[1727970217756,0.04064238,60290.0,60289.0,0.522946]
[1727970219979,0.05094477,60290.0,60289.0,0.44]
[1727970220263,0.05094783,60293.0,60291.0,0.082943]
[1727970220459,0.082942,60292.0,60291.0,0.082943]
[1727970220652,0.082947,60288.0,60286.0,0.10193892]
[1727970220854,0.082947,60288.0,60287.0,0.082949]
[1727970221060,0.13390199,60288.0,60287.0,0.082949]
[1727970221257,0.26475275,60288.0,60287.0,0.082949]
[1727970221461,0.13390199,60288.0,60287.0,0.082949]
[1727970222160,0.05095499,60288.0,60285.0,0.3608]
[1727970222366,0.29,60294.0,60285.0,0.3608]
[1727970222367,0.08295,60286.0,60285.0,0.3608]
[1727970222563,0.13390499,60286.0,60285.0,0.3608]
[1727970223553,0.082962,60277.0,60274.0,0.082966]
[1727970223766,0.082962,60277.0,60273.0,0.3608]
[1727970224069,0.24826703,60277.0,60273.0,0.3608]
[1727970224369,0.13391699,60277.0,60273.0,0.3608]
[1727970224665,0.13391699,60277.0,60276.0,0.08545233]
[1727970225057,0.13391699,60277.0,60276.0,0.00248833]
[1727970226460,0.13391699,60277.0,60276.0,0.08545233]
[1727970226763,0.23279177,60277.0,60276.0,0.08545233]
[1727970227072,0.05095499,60277.0,60276.0,0.58317233]
[1727970227256,0.05095499,60277.0,60276.0,0.08545233]
[1727970227664,0.082962,60278.0,60277.0,0.082962]
[1727970227865,0.13390972,60278.0,60277.0,0.082962]
[1727970228666,0.14894248,60281.0,60276.0,0.00248833]
[1727970228866,0.050946,60280.0,60279.0,0.082959]
[1727970229172,0.133904,60280.0,60279.0,0.372959]
[1727970229368,0.082961,60278.0,60276.0,0.08545133]
[1727970229669,0.082961,60278.0,60277.0,0.082962]
[1727970229867,0.082962,60277.0,60276.0,0.00248833]
[1727970230169,0.13390788,60277.0,60276.0,0.00248833]
[1727970231267,0.05094588,60277.0,60276.0,0.08545233]
[1727970231459,0.16536752,60281.0,60280.0,0.082958]
[1727970231661,0.17454405,60281.0,60280.0,0.082958]
[1727970231860,0.2318911,60281.0,60280.0,0.082958]
[1727970232268,0.17454405,60281.0,60280.0,0.082958]
[1727970232565,0.1489491,60281.0,60280.0,0.372958]
[1727970232762,0.2319061,60281.0,60280.0,0.372958]
[1727970233570,0.32349315,60281.0,60280.0,0.372958]
[1727970233769,0.12360036,60281.0,60280.0,0.372958]
[1727970234160,0.2319061,60281.0,60280.0,0.372958]
[1727970234374,0.323489,60281.0,60280.0,0.372958]
[1727970234859,0.1745399,60281.0,60280.0,0.372958]
[1727970235465,0.12359852,60281.0,60280.0,0.372958]
[1727970236178,0.17454034,60281.0,60280.0,0.372958]
[1727970237472,0.12359852,60281.0,60280.0,0.372958]
[1727970237668,0.12359852,60281.0,60276.0,0.08545033]
[1727970237967,0.082962,60277.0,60276.0,0.00248833]
[1727970238270,0.12360109,60277.0,60276.0,0.00248833]
[1727970238474,0.1236012,60277.0,60276.0,0.00248833]
[1727970238660,0.082962,60277.0,60276.0,0.00248833]
[1727970238967,0.13390064,60277.0,60276.0,0.00248833]
[1727970239164,0.12360133,60277.0,60276.0,0.00248833]
[1727970239865,0.082975,60268.0,60267.0,0.082976]
[1727970240664,0.1236126,60268.0,60267.0,0.082976]
[1727970241060,0.0591245,60268.0,60260.0,0.0332]
[1727970241262,0.08299,60259.0,60254.0,0.29]
[1727970241464,0.082991,60256.0,60255.0,0.08548149]
[1727970241666,0.082991,60256.0,60255.0,0.00248949]
[1727970243374,1.180871,60256.0,60255.0,0.00248949]
[1727970243773,0.082991,60256.0,60255.0,0.00248949]
[1727970245160,0.082991,60256.0,60255.0,0.08548249]
[1727970245572,0.3608,60265.0,60259.0,0.082986]
[1727970245573,0.082987,60260.0,60259.0,0.082986]
[1727970245774,0.082987,60260.0,60255.0,0.00248949]
[1727970245775,0.082982,60263.0,60262.0,0.082981]
[1727970245972,0.082991,60256.0,60255.0,0.00248949]
[1727970246470,0.082991,60256.0,60255.0,0.29248949]
[1727970247271,0.082991,60256.0,60255.0,0.00248949]
[1727970247665,0.082991,60256.0,60255.0,0.29248949]
[1727970247863,0.082991,60256.0,60255.0,0.37548249]
[1727970248171,0.3608,60265.0,60255.0,0.79036949]
[1727970248491,0.3608,60265.0,60264.0,0.08298]
[1727970248667,0.082976,60268.0,60261.0,0.6508]
[1727970248982,0.08545236,60277.0,60271.0,0.08297]
[1727970248983,0.08297,60272.0,60271.0,0.08297]
[1727970249167,0.082969,60272.0,60271.0,0.37297]
[1727970249769,0.082969,60272.0,60271.0,0.08297]
[1727970249964,0.082974,60269.0,60268.0,0.082974]
[1727970250477,0.29,60275.0,60261.0,0.3608]
[1727970250682,0.082983,60262.0,60261.0,0.443784]
[1727970251876,0.082979,60266.0,60264.0,0.08298]
[1727970252075,0.082974,60269.0,60267.0,0.082975]
[1727970252272,0.082974,60269.0,60268.0,0.082974]
[1727970253282,0.082969,60272.0,60271.0,0.082969]
[1727970254869,0.082964,60276.0,60261.0,0.443784]
[1727970254870,0.082974,60269.0,60261.0,0.3608]
[1727970255078,0.01886787,60277.0,60266.0,0.29]
[1727970255283,0.082961,60279.0,60267.0,0.29]
[1727970255488,0.082982,60265.0,60261.0,0.01858133]
[1727970255777,0.082982,60265.0,60258.0,0.08547706]
[1727970255778,0.082987,60259.0,60258.0,0.08547706]
[1727970255971,0.082987,60259.0,60258.0,0.00248906]
[1727970257083,0.082987,60259.0,60248.0,0.3608]
[1727970257084,0.082989,60258.0,60248.0,0.3608]
[1727970257283,0.083001,60249.0,60248.0,0.3608]
[1727970257489,0.083001,60249.0,60248.0,0.443802]
[1727970257676,0.082994,60255.0,60254.0,0.082993]
[1727970257985,0.01884079,60262.0,60258.0,0.082988]
[1727970258285,0.00248995,60264.0,60258.0,0.082988]
[1727970258484,0.443778,60266.0,60261.0,0.082984]
[1727970258485,0.082983,60262.0,60261.0,0.082984]
[1727970258682,0.082984,60261.0,60260.0,0.29]
[1727970259683,0.082984,60261.0,60260.0,0.372986]
[1727970260471,0.10150833,60269.0,60266.0,0.082976]
[1727970260673,0.082974,60269.0,60268.0,0.29]
[1727970261072,0.01884907,60270.0,60263.0,0.29]
[1727970261278,0.082977,60267.0,60265.0,0.082979]
[1727970261983,0.082977,60266.0,60265.0,0.082979]
[1727970262187,0.082968,60273.0,60259.0,0.0315]
[1727970262385,0.082986,60261.0,60260.0,0.082986]
[1727970267783,0.082986,60261.0,60256.0,0.082991]
[1727970267784,0.082994,60257.0,60256.0,0.082991]
[1727970267987,0.082998,60251.0,60248.0,0.443801]
[1727970268295,0.0311,60260.0,60248.0,0.3608]
[1727970268594,0.082988,60259.0,60258.0,0.082986]
[1727970268777,0.082988,60259.0,60258.0,0.372986]
[1727970269491,0.3608,60268.0,60262.0,0.082983]
[1727970269492,0.082982,60263.0,60262.0,0.082983]
[1727970269886,0.082978,60266.0,60265.0,0.082977]
[1727970270083,0.3608,60268.0,60267.0,0.082976]
[1727970270285,0.082973,60269.0,60268.0,0.082975]
[1727970270488,0.36328993,60274.0,60272.0,0.082968]
[1727970270489,0.08297,60273.0,60272.0,0.082968]
[1727970270783,0.08297,60273.0,60272.0,0.372968]
[1727970271189,0.00248993,60274.0,60272.0,0.372968]
[1727970271190,0.00248993,60274.0,60273.0,0.082968]
[1727970272515,0.14889752,60287.0,60273.0,1.541488]
[1727970272794,0.3608,60289.0,60285.0,0.08295]
[1727970272986,0.3608,60289.0,60288.0,0.082947]
[1727970273180,0.40143294,60289.0,60288.0,0.082947]
[1727970273385,0.082952,60285.0,60284.0,0.08295]
[1727970273886,0.3608,60289.0,60278.0,0.29]
[1727970274089,0.082962,60278.0,60277.0,0.082961]
[1727970274697,0.082964,60276.0,60275.0,0.082964]
[1727970275086,0.082966,60274.0,60273.0,0.3608]
[1727970275282,0.082966,60274.0,60273.0,0.443768]
[1727970275687,0.14889752,60283.0,60279.0,0.082959]
[1727970275688,0.08296,60280.0,60279.0,0.082959]
[1727970275886,0.1235934,60280.0,60279.0,0.372959]
[1727970276285,0.08296,60280.0,60279.0,0.372959]
[1727970277089,0.01924118,60283.0,60279.0,0.29]
[1727970277298,0.082954,60283.0,60282.0,0.082955]
[1727970277600,0.12358379,60283.0,60282.0,0.082955]
[1727970277795,0.04062951,60283.0,60273.0,0.3608]
[1727970277998,0.082966,60275.0,60273.0,0.3608]
[1727970278190,0.082966,60274.0,60273.0,0.3608]
[1727970278700,0.12360212,60274.0,60273.0,0.3608]
[1727970278887,0.04063612,60274.0,60273.0,0.443768]